bitfinex/quotes_ETHUSD_20250526
["timestamp","ask_amount","ask_price","bid_price","bid_amount"]
[1748218828117,17.55289305,2550.2,2550.1,0.05]
[1748218828688,21.81289305,2550.2,2550.1,0.05]
[1748218829115,17.55289305,2550.2,2550.1,0.05]
[1748218829322,21.80889305,2550.2,2550.1,0.05]
[1748218830642,22.18290455,2550.2,2550.1,0.05]
[1748218833911,30.2499812,2550.2,2550.1,0.05]
[1748218834920,30.73327966,2550.2,2550.1,0.05]
[1748218835465,25.4439812,2550.2,2550.1,0.05]
[1748218835810,26.46238333,2550.2,2550.1,0.05]
[1748218837060,25.6199697,2550.2,2550.1,0.05]
[1748218841051,26.10326816,2550.2,2550.1,0.05]
[1748218841267,29.7369697,2550.2,2550.1,0.05]
[1748218841474,25.6199697,2550.2,2550.1,0.05]
[1748218842173,25.0699697,2550.2,2550.1,0.05]
[1748218843386,16.2787697,2550.2,2550.1,0.05]
[1748218843677,2.352,2550.4,2550.1,0.05]
[1748218843879,2.352,2550.2,2550.1,0.05]
[1748218844079,6.27326107,2550.2,2550.1,0.05]
[1748218846743,3.92126107,2550.2,2550.1,0.05]
[1748218848354,6.27326107,2550.2,2550.1,0.05]
[1748218848574,8.15499338,2550.2,2550.1,0.05]
[1748218849705,16.15499338,2550.2,2550.1,0.05]
[1748218851159,22.2391431,2550.2,2550.1,0.05]
[1748218852104,22.61406707,2550.2,2550.1,0.05]
[1748218860720,20.73233476,2550.2,2550.1,0.05]
[1748218863511,21.49643476,2550.2,2550.1,0.05]
[1748218864748,20.73233476,2550.2,2550.1,0.05]
[1748218868156,17.69061821,2550.2,2550.1,0.05]
[1748218873286,6.27449156,2549.4,2549.3,0.7993]
[1748218873440,9.31692473,2549.4,2549.3,0.7993]
[1748218875798,6.2747993,2549.2,2549.1,0.1]
[1748218877710,9.31723247,2549.2,2549.1,0.1]
[1748218884184,10.6412238,2549.2,2549.1,0.1]
[1748218884449,19.4407238,2549.2,2549.1,0.1]
[1748218884652,2.352,2548.7,2548.2,0.8282]
[1748218884858,3.92433874,2548.2,2548.1,4.017]
[1748218885054,9.31861792,2548.3,2548.1,4.017]
[1748218885055,9.31863379,2548.3,2548.1,4.017]
[1748218885552,3.92433874,2548.2,2548.1,0.1]
[1748218885741,9.3187076,2548.3,2548.1,0.1]
[1748218887243,9.31871086,2548.3,2548.1,0.1]
[1748218888167,9.31871086,2548.3,2548.1,4.018]
[1748218888864,6.27578795,2548.6,2548.1,4.50262]
[1748218889165,3.92409915,2548.4,2548.1,4.50262]
[1748218889370,3.92424812,2548.3,2548.1,4.50262]
[1748218889734,6.96677191,2548.2,2548.1,4.018]
[1748218890080,9.31877191,2548.2,2548.1,0.1]
[1748218892778,18.13487191,2548.2,2548.1,0.1]
[1748218894140,26.20194856,2548.2,2548.1,0.1]
[1748218894436,29.21456204,2548.2,2548.1,0.1]
[1748218896071,10.41907665,2548.2,2548.1,0.1]
[1748218896448,8.06707665,2548.2,2548.1,1.6697971]
[1748218896647,8.06707665,2548.2,2548.1,0.862]
[1748218896851,8.06707665,2548.2,2548.1,2.4317971]
[1748218897053,8.06707665,2548.2,2548.1,1.65396357]
[1748218897435,15.03384856,2548.2,2548.1,1.65396357]
[1748218897638,15.03384856,2548.2,2548.1,0.862]
[1748218898081,11.99141539,2548.2,2548.1,0.1]
[1748218898377,14.34341539,2548.2,2548.1,0.1]
[1748218901106,20.43459071,2548.2,2548.1,0.1]
[1748218905605,28.43459071,2548.2,2548.1,0.1]
[1748218907168,31.78652019,2548.2,2548.1,0.1]
[1748218907909,32.55532019,2548.2,2548.1,0.1]
[1748218913425,32.93016915,2548.2,2548.1,0.1]
[1748218918035,29.8859132,2548.2,2548.1,0.1]
[1748218919934,30.92116159,2548.2,2548.1,0.1]
[1748218920147,30.4359132,2548.2,2548.1,0.1]
[1748218920449,29.8859132,2548.2,2548.1,0.1]
[1748218922656,34.5589132,2548.2,2547.3,0.7978]
[1748218922851,6.27787939,2547.2,2547.1,4.8406]
[1748218923144,9.32479876,2547.2,2547.1,4.8406]
[1748218923350,2.352,2547.2,2547.1,4.8406]
[1748218924572,2.352,2547.2,2547.1,0.9216]
[1748218924725,2.352,2547.2,2547.1,4.8416]
[1748218927452,6.27787939,2547.2,2547.1,0.9216]
[1748218927619,6.27787939,2547.2,2547.1,4.8416]
[1748218928118,6.2778151,2547.3,2547.1,4.8416]
[1748218928362,17.32479876,2547.2,2547.1,0.1]
[1748218932759,9.32479876,2547.2,2547.1,0.1]
[1748218932977,3.04691937,2547.4,2547.3,1.17771758]
[1748218933147,2.352,2547.4,2547.3,4.12722176]
[1748218933374,2.352,2547.4,2547.3,4.92172176]
[1748218934040,6.27757117,2547.4,2547.3,4.92172176]
[1748218934440,2.352,2547.5,2547.3,4.92172176]
[1748218935477,2.352,2547.6,2547.3,4.92172176]
[1748218935678,2.352,2547.6,2547.4,0.49217218]
[1748218936044,6.27726439,2547.6,2547.4,0.49217218]
[1748218936389,6.27726854,2547.6,2547.4,0.49217218]
[1748218936549,2.352,2547.6,2547.5,3.92]
[1748218936753,6.27726299,2547.6,2547.5,3.92]
[1748218937574,2.352,2547.6,2547.5,3.92]
[1748218938467,6.97203825,2547.7,2547.5,3.92]
[1748218938652,6.97203825,2547.7,2547.5,4.5299438]
[1748218939464,3.92526299,2547.6,2547.5,3.92]
[1748218940278,3.92532706,2547.6,2547.5,3.92]
[1748218942796,6.97213203,2547.7,2547.5,3.92]
[1748218943260,3.92526299,2547.6,2547.5,3.92]
[1748218943656,3.92548473,2547.5,2547.4,3.92]
[1748218943868,3.04691937,2547.5,2547.1,0.8932]
[1748218944182,6.97240236,2547.5,2547.4,3.92]
[1748218944982,3.92587939,2547.2,2547.1,4.02]
[1748218945144,3.04691937,2547.2,2547.1,4.02]
[1748218945659,6.2777321,2547.3,2547.1,4.02]
[1748218946182,3.04691937,2547.4,2547.1,4.02]
[1748218946878,2.352,2547.3,2547.1,4.02]
[1748218949887,2.352,2547.3,2547.1,0.1]
[1748218950063,9.32479876,2547.2,2547.1,0.1]
[1748218950381,5.39891937,2547.2,2547.1,0.1]
[1748218950963,9.32479876,2547.2,2547.1,4.02]
[1748218951363,5.39891937,2547.2,2547.1,4.02]
[1748218953069,5.39891937,2547.4,2547.1,4.61619023]
[1748218954484,5.39891937,2547.4,2547.2,0.7605]
[1748218954862,9.32449838,2547.4,2547.2,0.7605]
[1748218955682,5.39891937,2547.4,2547.2,0.7605]
[1748218956500,5.39891937,2547.6,2547.2,1.41595241]
[1748218956675,5.39891937,2547.6,2547.2,2.59369171]
[1748218957003,9.32418859,2547.6,2547.2,2.59369171]
[1748218957588,5.39891937,2547.6,2547.2,2.59369171]
[1748218957980,9.3241924,2547.6,2547.2,2.59369171]
[1748218958182,9.3241924,2547.6,2547.3,0.66136917]
[1748218958380,9.3241924,2547.6,2547.4,3.92]
[1748218958992,5.39891937,2547.6,2547.4,3.92]
[1748218959203,9.32420682,2547.6,2547.4,3.92]
[1748218960396,6.27741707,2547.5,2547.4,3.92]
[1748218960793,6.27747976,2547.5,2547.4,3.92]
[1748218962700,6.2774629,2547.5,2547.4,3.92]
[1748218963507,3.92572527,2547.3,2547.2,0.7605]
[1748218963712,9.32464464,2547.3,2547.2,3.92]
[1748218964002,3.92587939,2547.2,2547.1,0.1]
[1748218964307,3.92587939,2547.2,2547.1,4.02]
[1748218966609,6.27787939,2547.2,2547.1,0.1]
[1748218966806,7.6029337,2547.2,2547.1,4.02]
[1748218967312,8.3657337,2547.2,2547.1,0.1]
[1748218970405,7.04067939,2547.2,2547.1,0.1]
[1748218970611,6.27787939,2547.2,2547.1,0.1]
[1748218971927,23.11705604,2547.2,2547.1,0.1]
[1748218975514,22.34495604,2547.2,2547.1,0.1]
[1748218981231,14.27787939,2547.2,2547.1,0.1]
[1748218981712,3.04691937,2547.3,2547.1,0.1]
[1748218981911,6.97278771,2547.3,2547.2,0.7757]
[1748218982314,3.92587939,2547.2,2547.1,0.502]
[1748218985413,15.10007939,2547.2,2547.1,0.1]
[1748218988424,2.352,2546.5,2546.3,0.7969]
[1748218988640,3.04691937,2546.4,2546.3,0.7969]
[1748218989320,3.04691937,2546.4,2546.3,4.7169]
[1748218989841,2.352,2546.3,2546.1,0.8939]
[1748218990134,3.04691937,2546.2,2546.1,0.1]
[1748218990343,3.04691937,2546.2,2546.1,4.02]
[1748218991842,3.04691937,2546.2,2546.1,0.1]
[1748218992030,3.04691937,2546.2,2546.1,4.02]
[1748218994446,3.04691937,2546.2,2546.1,5.19827265]
[1748218994652,3.04691937,2546.4,2546.2,1.17822616]
[1748218994863,3.04691937,2546.4,2546.3,0.7644]
[1748218995930,6.27873942,2546.7,2546.3,1.9425801]
[1748218995931,3.04691937,2546.6,2546.3,1.9425801]
[1748218996337,2.75393555,2547.0,2546.4,0.03926873]
[1748218996539,11.11399602,2547.2,2546.6,0.7997]
[1748218996853,6.97286584,2547.2,2546.7,1.17797155]
[1748218997160,3.9258731,2547.3,2546.6,1.97770573]
[1748218997161,3.04691937,2547.0,2546.6,1.97772677]
[1748218999449,6.27728777,2547.6,2547.0,1.17782281]
[1748218999624,3.04691937,2547.3,2547.1,4.7432]
[1748219000751,3.04691937,2547.3,2547.1,5.45309197]
[1748219003943,3.04691937,2547.3,2547.1,6.63089895]
[1748219004137,3.04691937,2547.3,2547.1,5.45309197]
[1748219005982,3.04691937,2547.3,2546.9,0.8288]
[1748219006189,3.04691937,2547.0,2546.6,0.8288]
[1748219006347,3.04691937,2546.8,2546.7,3.92]
[1748219006666,6.97341536,2546.8,2546.7,3.92]
[1748219006871,3.04691937,2546.8,2546.7,3.92]
[1748219007088,3.92702069,2546.5,2546.3,0.8288]
[1748219007291,3.92702069,2546.5,2546.2,1.97357491]
[1748219007292,3.92726701,2546.3,2546.2,1.97357491]
[1748219007446,6.9741303,2546.4,2546.3,3.92]
[1748219007773,3.92726701,2546.3,2546.2,1.97357491]
[1748219008064,3.92726701,2546.3,2546.2,5.89357491]
[1748219008369,3.92726701,2546.3,2546.2,1.97357491]
[1748219008569,3.92726701,2546.3,2546.2,5.89357491]
[1748219009761,6.97411862,2546.4,2546.2,5.89357491]
[1748219009971,3.92726701,2546.3,2546.2,5.89357491]
[1748219010678,3.87861937,2546.4,2546.2,5.89357491]
[1748219010679,7.8058183,2546.4,2546.2,5.89357491]
[1748219011581,3.92726701,2546.3,2546.2,5.89357491]
[1748219012072,7.80579032,2546.4,2546.2,5.89357491]
[1748219013449,3.87861937,2546.4,2546.2,5.89357491]
[1748219013656,3.87861937,2546.4,2546.2,3.92]
[1748219014278,3.04691937,2546.5,2546.2,5.19222961]
[1748219014448,3.04691937,2546.5,2546.3,1.17816975]
[1748219014773,3.04691937,2546.5,2546.2,6.3704292]
[1748219015078,3.04691937,2546.5,2546.3,1.17817762]
[1748219015278,3.04691937,2546.5,2546.1,1.27826361]
[1748219015279,7.05542125,2546.2,2546.1,0.1]
[1748219015441,7.05542125,2546.2,2545.4,3.921]
[1748219015442,2.352,2545.9,2545.4,3.921]
[1748219015778,3.04691937,2545.5,2545.4,3.921]
[1748219015937,3.04691937,2545.5,2545.3,1.97357491]
[1748219016276,3.04691937,2545.5,2545.4,3.921]
[1748219016637,3.04691937,2545.6,2545.4,3.921]
[1748219016859,3.04691937,2545.6,2545.4,5.89457491]
[1748219017349,3.04691937,2545.6,2545.5,1.17855038]
[1748219017553,3.04691937,2545.8,2545.5,1.17855038]
[1748219017749,3.04691937,2545.8,2545.4,7.85570561]
[1748219017955,3.04691937,2545.6,2545.4,7.85570561]
[1748219019085,4.73218692,2546.2,2545.4,6.67713585]
[1748219019246,3.04691937,2545.8,2545.6,1.17850408]
[1748219019775,3.04691937,2545.8,2545.7,1.17845779]
[1748219020148,3.04691937,2546.0,2545.6,1.17849515]
[1748219020361,3.04691937,2546.0,2545.7,5.10041455]
[1748219020551,3.04691937,2546.0,2545.8,1.17840029]
[1748219020937,3.04691937,2546.0,2545.9,1.17836521]
[1748219021362,3.04691937,2546.0,2545.8,1.92868642]
[1748219021752,3.04691937,2546.0,2545.9,1.17836521]
[1748219022093,3.04691937,2546.0,2545.9,1.88127037]
[1748219024251,3.04691937,2546.0,2545.9,5.80327037]
[1748219024443,3.04691937,2546.0,2545.9,5.10036521]
[1748219029189,2.352,2546.3,2545.9,5.10036521]
[1748219029399,3.04691937,2546.1,2546.0,1.17829248]
[1748219029596,3.04691937,2546.1,2545.9,5.10034011]
[1748219030777,2.352,2545.9,2545.6,0.8002]
[1748219030982,3.92775118,2546.0,2545.1,4.329]
[1748219030983,3.04691937,2545.6,2545.3,1.17863143]
[1748219031160,3.04691937,2545.6,2545.5,1.17852131]
[1748219031492,3.04691937,2545.6,2545.4,5.10057028]
[1748219031698,3.04691937,2545.6,2545.4,5.80851051]
[1748219031890,3.04691937,2545.6,2545.5,1.17855038]
[1748219032302,3.04691937,2545.6,2545.4,5.80851128]
[1748219032892,3.04691937,2545.6,2545.4,4.62994023]
[1748219033592,3.04691937,2545.6,2545.4,5.80853448]
[1748219033896,3.04691937,2545.6,2545.4,5.10059425]
[1748219034475,3.04691937,2545.6,2545.5,1.17855038]
[1748219036502,3.04691937,2545.6,2545.5,5.10055038]
[1748219037403,10.10643331,2545.6,2545.1,0.1]
[1748219037556,3.04691937,2545.2,2545.1,1.27870417]
[1748219037765,3.04691937,2545.2,2545.1,5.20070417]
[1748219038205,5.39891937,2545.4,2545.3,1.17860023]
[1748219038383,5.39891937,2545.6,2545.5,1.17855038]
[1748219038600,5.39891937,2545.6,2545.5,5.10055038]
[1748219039074,5.39891937,2545.6,2545.5,3.922]
[1748219039877,5.39891937,2545.6,2545.5,5.10055038]
[1748219040076,5.39891937,2545.6,2545.5,3.922]
[1748219040476,3.04691937,2545.6,2545.5,3.922]
[1748219042124,2.352,2546.0,2545.5,4.7463]
[1748219042306,5.39891937,2546.0,2545.8,1.17840338]
[1748219042505,5.39891937,2546.0,2545.9,3.922]
[1748219045723,3.04691937,2546.0,2545.9,3.922]
[1748219047111,3.04691937,2546.0,2545.5,0.8243]
[1748219047311,3.04691937,2546.0,2545.7,1.178424]
[1748219047612,3.04691937,2546.0,2545.8,1.6884539]
[1748219048876,3.04691937,2546.0,2545.8,1.6384539]
[1748219049215,3.04691937,2546.0,2545.9,3.922]
[1748219053923,3.04691937,2546.0,2545.9,5.10036521]
[1748219054214,3.04691937,2546.0,2545.9,3.922]
[1748219060026,6.23111937,2546.0,2545.9,3.922]
[1748219062794,6.23111937,2546.0,2545.7,1.17842539]
[1748219063023,3.1842,2546.0,2545.9,3.922]
[1748219064210,6.23111937,2546.0,2545.9,3.922]
[1748219064939,6.23111937,2546.0,2545.7,1.17842539]
[1748219065130,3.1842,2546.0,2545.9,3.922]
[1748219065330,6.23111937,2546.0,2545.9,3.922]
[1748219065844,0.8142,2546.7,2546.0,1.94221893]
[1748219066055,0.8142,2546.7,2546.3,1.17814661]
[1748219066359,0.8142,2546.7,2546.4,3.922]
[1748219066650,4.74087586,2546.7,2546.4,3.922]
[1748219066806,3.1662,2546.7,2546.4,3.922]
[1748219067006,3.04691937,2546.5,2546.4,3.922]
[1748219067641,3.04691937,2546.5,2546.4,5.10013383]
[1748219067833,3.04691937,2546.5,2546.4,5.7279629]
[1748219068527,3.04691937,2546.5,2546.3,1.17815501]
[1748219068755,3.04691937,2546.5,2546.4,3.922]
[1748219068955,3.04691937,2546.5,2546.0,0.7639]
[1748219069153,3.04691937,2546.1,2545.9,1.17833411]
[1748219069357,3.04691937,2546.1,2546.0,3.922]
[1748219069542,3.04691937,2546.1,2545.6,0.8191]
[1748219069748,3.04691937,2545.7,2545.6,0.8191]
[1748219070142,3.04691937,2545.7,2545.6,5.91960408]
[1748219071977,3.04691937,2545.7,2545.5,1.17853052]
[1748219072151,3.04691937,2545.7,2545.6,4.23931956]
[1748219072878,3.04691937,2545.7,2545.6,0.31731956]
[1748219073039,3.04691937,2545.7,2545.6,3.922]
[1748219073495,2.352,2545.5,2545.1,0.8567]
[1748219073671,3.04691937,2545.2,2545.1,0.1]
[1748219073982,3.04691937,2545.2,2545.1,4.022]
[1748219074558,3.04691937,2545.2,2545.1,0.1]
[1748219074759,3.04691937,2545.2,2545.1,4.022]
[1748219076140,6.97588369,2545.2,2545.1,0.1]
[1748219076340,6.97588369,2545.2,2545.1,4.022]
[1748219076592,7.75988369,2545.2,2545.1,5.99627823]
[1748219077599,3.83091937,2545.2,2545.1,5.99627823]
[1748219077759,7.75988369,2545.2,2545.1,5.99627823]
[1748219079671,7.75988369,2545.2,2545.1,2.07427823]
[1748219079984,7.75988369,2545.2,2545.1,5.99627823]
[1748219080890,7.75988369,2545.2,2545.1,2.07427823]
[1748219081252,7.75988369,2545.2,2545.1,5.99627823]
[1748219081471,11.9756737,2545.2,2545.1,2.07427823]
[1748219081661,11.9756737,2545.2,2545.1,5.99627823]
[1748219082073,8.92875433,2545.2,2545.1,5.99627823]
[1748219083552,8.92875433,2545.2,2545.1,4.022]
[1748219083754,3.83091937,2545.2,2545.1,4.022]
[1748219083954,7.75988369,2545.2,2545.1,4.022]
[1748219085174,7.75988369,2545.2,2545.1,0.1]
[1748219085380,7.75988369,2545.2,2545.1,4.023]
[1748219085564,10.80680306,2545.2,2545.1,4.023]
[1748219085764,9.23344927,2545.2,2545.1,4.023]
[1748219086758,11.58544927,2545.2,2545.1,4.023]
[1748219087415,11.97956093,2545.2,2545.1,4.023]
[1748219088085,11.97956093,2545.2,2545.1,0.1]
[1748219088388,15.0264803,2545.2,2545.1,0.1]
[1748219090090,15.0021803,2545.2,2545.1,0.1]
[1748219090507,7.43477598,2545.2,2545.1,0.1]
[1748219090657,10.48169535,2545.2,2545.1,0.1]
[1748219097927,6.67507598,2545.2,2545.1,0.1]
[1748219098075,9.72199535,2545.2,2545.1,0.1]
[1748219102520,12.76891472,2545.2,2545.1,0.1]
[1748219102687,14.51575052,2545.2,2545.1,0.1]
[1748219102896,19.46883115,2545.2,2545.1,0.1]
[1748219104411,17.72199535,2545.2,2545.1,0.1]
[1748219104809,20.76891472,2545.2,2545.1,0.1]
[1748219106296,17.72199535,2545.2,2545.1,0.1]
[1748219107501,20.76891472,2545.2,2545.1,0.1]
[1748219110638,17.72199535,2545.2,2545.1,0.1]
[1748219110843,2.352,2545.4,2545.1,0.1]
[1748219110998,3.04691937,2545.2,2545.1,0.57883]
[1748219111413,6.97588369,2545.2,2545.1,0.57883]
[1748219111613,12.37480306,2545.2,2545.1,0.1]
[1748219111939,9.32788369,2545.2,2545.1,4.024]
[1748219112108,12.37480306,2545.2,2545.1,4.024]
[1748219112311,2.74887209,2545.2,2545.1,4.024]
[1748219112537,3.04691937,2545.2,2545.1,5.34037625]
[1748219112807,9.32788369,2545.2,2545.1,0.1]
[1748219113009,12.37480306,2545.2,2545.1,0.1]
[1748219113228,9.32788369,2545.2,2545.1,0.1]
[1748219114007,9.72393183,2545.2,2545.1,0.1]
[1748219114839,12.7708512,2545.2,2545.1,0.1]
[1748219115021,11.39390131,2545.2,2545.1,0.1]
[1748219116132,15.19892068,2545.2,2545.1,0.1]
[1748219116918,12.15200131,2545.2,2545.1,0.1]
[1748219118160,15.19892068,2545.2,2545.1,0.1]
[1748219119799,23.19892068,2545.2,2545.1,0.1]
[1748219122539,23.19892068,2545.2,2544.4,1.9532572]
[1748219122540,6.28183718,2544.7,2544.4,0.7742]
[1748219122745,3.04691937,2544.5,2544.4,0.7742]
[1748219123055,3.04691937,2544.5,2544.4,4.6982]
[1748219124142,6.97696456,2544.5,2544.4,0.7742]
[1748219124333,3.93043291,2544.3,2544.1,0.1]
[1748219124532,3.93027375,2544.4,2544.2,3.924]
[1748219124731,3.04691937,2544.3,2544.2,3.924]
[1748219124935,3.04691937,2544.3,2544.2,5.89827823]
[1748219124936,6.97727349,2544.3,2544.2,5.89827823]
[1748219125805,6.97727349,2544.3,2544.2,1.97427823]
[1748219126012,10.15817349,2544.3,2544.2,1.97427823]
[1748219127408,11.56701333,2544.3,2544.2,1.97427823]
[1748219131551,9.32927349,2544.3,2544.2,1.97427823]
[1748219131854,9.32927349,2544.3,2544.1,0.1]
[1748219132216,6.2825086,2544.2,2544.1,0.1]
[1748219132956,7.0353086,2544.2,2544.1,0.1]
[1748219133248,10.08222797,2544.2,2544.1,0.1]
[1748219133452,6.15171937,2543.7,2543.5,1.97427823]
[1748219133653,3.93143576,2543.6,2543.5,1.97427823]
[1748219133813,6.28343576,2543.6,2543.5,1.97427823]
[1748219135426,2.7354983,2543.6,2543.5,1.97427823]
[1748219135625,3.04691937,2543.7,2543.5,1.97427823]
[1748219136270,6.28843576,2543.6,2543.5,1.97427823]
[1748219136477,7.07773576,2543.6,2543.5,1.97427823]
[1748219137665,7.47558124,2543.6,2543.2,3.925]
[1748219137864,5.40391937,2543.3,2543.2,3.925]
[1748219140098,9.33581887,2543.3,2543.2,3.925]
[1748219140377,3.9320541,2543.2,2543.1,5.99927823]
[1748219140935,9.335905,2543.3,2543.1,5.99927823]
[1748219142276,3.9320541,2543.2,2543.1,5.99927823]
[1748219142468,9.33591104,2543.3,2543.1,2.07427823]
[1748219142669,5.40391937,2543.3,2543.1,5.99927823]
[1748219142879,3.9320541,2543.2,2543.1,5.99927823]
[1748219143442,3.9320541,2543.2,2543.1,2.07427823]
[1748219143644,3.9320541,2543.2,2543.1,6.00027823]
[1748219144122,3.04691937,2543.2,2543.1,7.93514069]
[1748219144394,3.04691937,2543.8,2543.6,0.7552]
[1748219144609,3.04691937,2543.7,2543.6,0.7552]
[1748219144790,3.04691937,2543.7,2543.6,4.6812]
[1748219146166,2.357,2544.1,2543.6,4.6812]
[1748219146475,3.04691937,2543.7,2543.6,4.6812]
[1748219146803,3.04691937,2543.7,2543.4,1.17950747]
[1748219146804,6.97820057,2543.7,2543.4,0.8174]
[1748219147007,3.93175788,2543.4,2543.2,0.8174]
[1748219147207,3.04691937,2543.2,2543.1,0.1]
[1748219147409,3.04691937,2543.2,2543.1,4.026]
[1748219150573,3.04691937,2543.2,2543.1,5.20566261]
[1748219150785,3.04691937,2543.2,2543.1,4.026]
[1748219150984,3.04691937,2543.2,2543.1,5.20566261]
[1748219152223,3.04691937,2543.2,2543.1,4.026]
[1748219156432,3.04691937,2543.2,2543.1,5.20566261]
[1748219160804,3.04691937,2543.3,2543.1,4.026]
[1748219161819,3.04691937,2543.5,2543.2,0.8104]
[1748219163916,3.04691937,2543.5,2543.4,1.17949351]
[1748219165308,0.7871,2544.3,2543.9,1.17927916]
[1748219165607,3.04691937,2544.0,2543.9,5.10529163]
[1748219166007,3.04691937,2544.0,2543.9,3.926]
[1748219166236,3.04691937,2544.0,2543.9,5.87319163]
[1748219167203,5.40391937,2544.0,2543.9,5.87319163]
[1748219167408,3.04691937,2544.0,2543.9,5.87319163]
[1748219168533,3.04691937,2544.0,2543.9,4.6939]
[1748219168721,3.04691937,2544.0,2543.9,5.87319163]
[1748219169534,2.357,2543.7,2543.1,0.8556]
[1748219169734,8.0,2543.9,2543.1,0.1]
[1748219169735,3.04691937,2543.2,2543.1,0.1]
[1748219169931,3.04691937,2543.2,2543.1,1.27966261]
[1748219170187,0.76,2543.6,2543.1,0.81399646]
[1748219170320,3.04691937,2543.4,2543.3,1.17956985]
[1748219172437,7.05848403,2544.1,2543.6,1.1793981]
[1748219172601,3.04691937,2543.7,2543.6,1.1793981]
[1748219172934,3.04691937,2543.7,2543.6,5.1053981]
[1748219173139,3.04691937,2543.7,2543.6,3.926]
[1748219173737,3.04691937,2543.7,2543.6,5.10542104]
[1748219176539,3.04691937,2543.7,2543.6,3.926]
[1748219176743,3.04691937,2543.7,2543.6,5.10543072]
[1748219177698,3.04691937,2543.7,2543.4,1.17949859]
[1748219177899,2.357,2543.9,2543.6,3.925]
[1748219178128,2.97447194,2543.9,2543.6,5.10440394]
[1748219179102,3.04691937,2543.7,2543.6,5.10440394]
[1748219179297,3.04691937,2543.7,2543.2,0.8152]
[1748219179536,3.1392,2543.7,2543.3,3.925]
[1748219179743,3.04691937,2543.4,2543.3,5.10456087]
[1748219179934,3.04691937,2543.4,2543.3,3.925]
[1748219180106,3.04691937,2543.4,2543.2,1.17958857]
[1748219180307,3.04691937,2543.4,2543.3,3.925]
[1748219181040,3.04691937,2543.4,2543.1,1.2796502]
[1748219181245,3.04691937,2543.2,2543.1,0.1]
[1748219181470,3.04691937,2543.2,2543.1,4.025]
[1748219181753,6.18121937,2543.2,2542.9,1.97427823]
[1748219182047,9.33628272,2543.0,2542.9,1.97427823]
[1748219182221,10.74086495,2543.0,2542.9,1.97427823]
[1748219183524,10.74086495,2543.0,2542.7,3.926]
[1748219183525,6.28967264,2542.8,2542.7,3.926]
[1748219183846,5.40391937,2542.8,2542.7,3.926]
[1748219184048,12.40776799,2542.8,2542.7,3.926]
[1748219184443,8.47509535,2542.8,2542.7,3.926]
[1748219184957,0.7895,2543.7,2542.7,6.49626679]
[1748219185123,6.11809535,2543.4,2543.3,1.17956985]
[1748219185351,6.11809535,2543.4,2543.2,3.926]
[1748219186152,2.357,2543.3,2543.2,3.926]
[1748219191793,6.11809535,2543.4,2543.2,5.10561623]
[1748219191976,6.11809535,2543.4,2543.3,1.17956985]
[1748219192483,6.11809535,2543.7,2543.2,5.19606162]
[1748219192688,6.11809535,2543.7,2543.5,1.17945236]
[1748219192898,8.47509535,2543.7,2543.6,3.926]
[1748219195309,8.47509535,2543.7,2543.6,5.10543072]
[1748219197675,8.47509535,2543.7,2543.6,3.926]
[1748219199314,8.47509535,2543.7,2543.5,1.1794512]
[1748219199483,8.47509535,2543.7,2543.6,3.926]
[1748219202742,8.47509535,2543.7,2543.6,5.10543072]
[1748219202962,8.47509535,2543.7,2543.2,0.7595]
[1748219203137,6.11809535,2543.4,2543.3,5.10556507]
[1748219203334,6.11809535,2543.4,2543.2,1.93909356]
[1748219203534,6.11809535,2543.4,2543.3,5.10556985]
[1748219203939,3.05730625,2543.4,2543.3,5.10556985]
[1748219206671,2.357,2543.8,2543.7,1.17938436]
[1748219206826,6.07748234,2543.8,2543.6,5.10541104]
[1748219207959,6.07748234,2543.8,2543.6,3.926]
[1748219208445,5.41430625,2543.8,2543.6,3.926]
[1748219208761,5.41430625,2543.8,2543.6,5.10542931]
[1748219209873,5.41430625,2543.8,2543.6,3.926]
[1748219210070,3.05730625,2543.7,2543.6,5.87152]
[1748219210236,3.05730625,2543.9,2543.8,1.17933799]
[1748219211148,3.05730625,2543.9,2543.8,5.10533799]
[1748219212945,11.92996654,2544.6,2543.8,3.926]
[1748219212946,11.1704,2544.5,2543.8,3.926]
[1748219213144,3.05730625,2543.9,2543.8,5.10533799]
[1748219219890,3.05730625,2543.9,2543.6,1.58914736]
[1748219220080,3.05730625,2543.7,2543.5,1.17945471]
[1748219220397,2.357,2543.9,2543.8,1.17933799]
[1748219221176,0.8005,2544.0,2543.8,1.17933799]
[1748219221489,3.05730625,2543.9,2543.8,1.17933799]
[1748219221789,5.41430625,2543.9,2543.8,1.17933799]
[1748219230401,5.41430625,2543.9,2543.8,5.10433799]
[1748219231478,3.05730625,2543.9,2543.8,5.10433799]
[1748219231683,3.05730625,2543.9,2543.8,5.73270941]
[1748219232921,2.357,2544.2,2544.0,1.17924528]
[1748219233221,5.41430625,2544.1,2544.0,1.17924528]
[1748219233396,5.41430625,2544.1,2544.0,5.10424528]
[1748219235945,5.41430625,2544.1,2544.0,3.925]
[1748219236830,5.41430625,2544.1,2544.0,5.10424528]
[1748219238127,5.41430625,2544.1,2544.0,3.925]
[1748219238431,5.41430625,2544.1,2544.0,5.10424528]
[1748219238939,5.41430625,2544.1,2544.0,3.925]
[1748219243817,5.41430625,2544.1,2543.9,1.17928866]
[1748219244017,5.41430625,2544.1,2544.0,3.925]
[1748219244960,2.357,2543.7,2543.1,0.8307]
[1748219245167,3.05730625,2543.3,2542.9,0.8307]
[1748219245527,6.23050625,2543.3,2542.8,5.39075783]
[1748219245689,18.16240575,2543.3,2543.1,3.925]
[1748219245889,16.43992447,2543.3,2543.1,3.925]
[1748219246096,20.37182397,2543.3,2542.7,1.25273101]
[1748219246387,2.357,2542.9,2542.7,1.25273101]
[1748219246535,5.41430625,2542.8,2542.7,1.25273101]
[1748219246734,5.41430625,2542.8,2542.7,3.925]
[1748219247099,9.91086313,2542.8,2542.7,3.925]
[1748219247236,18.71364292,2542.5,2542.4,2.56564739]
[1748219247590,23.2375187,2542.5,2542.4,2.56564739]
[1748219247742,7.09410081,2542.2,2542.0,3.15771986]
[1748219247935,6.29075555,2542.1,2542.0,1.56751154]
[1748219248132,14.29106506,2541.9,2541.3,4.34186481]